[Event "Titled Tuesday Blitz February 28 Early 2023"]
[White "Skaric, Djuro"]
[Black "Omelja, Artem"]
[WhiteFideId "934569"]
[BlackFideId "14119846"]
[WhiteElo "2282"]
[BlackElo "2404"]
[Result "1-0"]
[Round "05"]
[TimeControl "180+2"]
[Date "2023.02.28"]
[WhiteClock "0:01:54"]
[BlackClock "0:00:02"]

1. g3 {[%clk 0:03:00]}  d5 {[%clk 0:02:59]} 2. Bg2 {[%clk 0:03:00]}  c5 {[%clk 0:02:59]} 3. d3 {[%clk 0:03:00]}  Nc6 {[%clk 0:03:00]} 4. Nf3 {[%clk 0:03:01]}  e5 {[%clk 0:03:00]} 5. O-O {[%clk 0:03:01]}  Nf6 {[%clk 0:03:00]} 6. Nc3 {[%clk 0:03:01]}  Be7 {[%clk 0:03:00]} 7. e4 {[%clk 0:03:00]}  d4 {[%clk 0:02:59]} 8. Ne2 {[%clk 0:03:00]}  O-O {[%clk 0:02:49]} 9. h3 {[%clk 0:03:00]}  Ne8 {[%clk 0:02:21]} 10. Ne1 {[%clk 0:02:59]}  Nd6 {[%clk 0:02:20]} 11. f4 {[%clk 0:02:59]}  f6 {[%clk 0:02:18]} 12. f5 {[%clk 0:02:59]}  Bd7 {[%clk 0:02:18]} 13. g4 {[%clk 0:02:57]}  b5 {[%clk 0:02:13]} 14. Rf2 {[%clk 0:02:57]}  c4 {[%clk 0:02:12]} 15. Bf1 {[%clk 0:02:57]}  a5 {[%clk 0:02:10]} 16. Ng3 {[%clk 0:02:55]}  Be8 {[%clk 0:02:10]} 17. Rg2 {[%clk 0:02:55]}  Kh8 {[%clk 0:02:06]} 18. Nh1 {[%clk 0:02:55]}  Rb8 {[%clk 0:02:01]} 19. h4 {[%clk 0:02:53]}  b4 {[%clk 0:01:46]} 20. Nf2 {[%clk 0:02:51]}  a4 {[%clk 0:01:45]} 21. dxc4 {[%clk 0:02:46]}  b3 {[%clk 0:01:31]} 22. cxb3 {[%clk 0:02:36]}  axb3 {[%clk 0:01:32]} 23. a3 {[%clk 0:02:34]}  Na5 {[%clk 0:01:27]} 24. g5 {[%clk 0:02:29]}  Naxc4 {[%clk 0:01:19]} 25. g6 {[%clk 0:02:18]}  Ne3 {[%clk 0:01:18]} 26. Qh5 {[%clk 0:02:09]}  h6 {[%clk 0:01:15]} 27. Bxe3 {[%clk 0:02:08]}  dxe3 {[%clk 0:01:14]} 28. Ng4 {[%clk 0:02:07]}  e2 {[%clk 0:00:53]} 29. Bxe2 {[%clk 0:02:02]}  Qb6+ {[%clk 0:00:52]} 30. Kh1 {[%clk 0:02:00]}  Nxf5 {[%clk 0:00:13]} 31. exf5 {[%clk 0:01:57]}  Bc6 {[%clk 0:00:14]} 32. Nxh6 {[%clk 0:01:57]}  Bxg2+ {[%clk 0:00:14]} 33. Nxg2 {[%clk 0:01:56]}  Qe3 {[%clk 0:00:01]} 34. Nf7+ {[%clk 0:01:54]}  Kg8 {[%clk 0:00:02]} 35. Qh7# {[%clk 0:01:54]} 1-0


[Site "https://www.chess.com"]

[Event "Titled Tuesday Blitz February 28 Early 2023"]
[White "Delgado Rosas, Fatima Alexandra"]
[Black "Rodriguez Fontecha, Marcos"]
[WhiteFideId "6603963"]
[BlackFideId "2256576"]
[WhiteElo "2320"]
[BlackElo "2263"]
[Result "1-0"]
[Round "05"]
[TimeControl "180+2"]
[Date "2023.02.28"]
[WhiteClock "0:01:03"]
[BlackClock "0:00:17"]

1. d4 {[%clk 0:02:56]}  d5 {[%clk 0:00:43]} 2. c4 {[%clk 0:02:54]}  Nc6 {[%clk 0:00:42]} 3. Nf3 {[%clk 0:02:54]}  e5 {[%clk 0:00:42]} 4. cxd5 {[%clk 0:02:53]}  Qxd5 {[%clk 0:00:43]} 5. Nc3 {[%clk 0:02:53]}  Bb4 {[%clk 0:00:43]} 6. e3 {[%clk 0:02:44]}  exd4 {[%clk 0:00:43]} 7. exd4 {[%clk 0:02:40]}  Nf6 {[%clk 0:00:43]} 8. Bd3 {[%clk 0:02:38]}  O-O {[%clk 0:00:43]} 9. O-O {[%clk 0:02:37]}  Bxc3 {[%clk 0:00:43]} 10. bxc3 {[%clk 0:02:38]}  Bg4 {[%clk 0:00:44]} 11. h3 {[%clk 0:02:30]}  Bxf3 {[%clk 0:00:43]} 12. Qxf3 {[%clk 0:02:31]}  Qxf3 {[%clk 0:00:43]} 13. gxf3 {[%clk 0:02:32]}  Rad8 {[%clk 0:00:42]} 14. Be4 {[%clk 0:02:27]}  Nd5 {[%clk 0:00:42]} 15. c4 {[%clk 0:02:21]}  Ndb4 {[%clk 0:00:40]} 16. Ba3 {[%clk 0:02:12]}  Rfe8 {[%clk 0:00:39]} 17. Rab1 {[%clk 0:02:05]}  a5 {[%clk 0:00:38]} 18. Bxb4 {[%clk 0:02:04]}  Nxb4 {[%clk 0:00:37]} 19. a3 {[%clk 0:02:01]}  Na2 {[%clk 0:00:36]} 20. Rxb7 {[%clk 0:01:56]}  Rxd4 {[%clk 0:00:34]} 21. Rxc7 {[%clk 0:01:54]}  Nc3 {[%clk 0:00:35]} 22. Re1 {[%clk 0:01:52]}  Kf8 {[%clk 0:00:27]} 23. Kg2 {[%clk 0:01:46]}  f5 {[%clk 0:00:27]} 24. Re3 {[%clk 0:01:29]}  Nd1 {[%clk 0:00:26]} 25. Rb3 {[%clk 0:01:15]}  fxe4 {[%clk 0:00:25]} 26. Rbb7 {[%clk 0:01:16]}  exf3+ {[%clk 0:00:24]} 27. Kxf3 {[%clk 0:01:12]}  Rd3+ {[%clk 0:00:24]} 28. Kg2 {[%clk 0:01:10]}  Ra8 {[%clk 0:00:21]} 29. Rf7+ {[%clk 0:01:10]}  Ke8 {[%clk 0:00:21]} 30. Rxg7 {[%clk 0:01:10]}  Kf8 {[%clk 0:00:19]} 31. Rxh7 {[%clk 0:01:11]}  Kg8 {[%clk 0:00:19]} 32. Rhg7+ {[%clk 0:01:10]}  Kh8 {[%clk 0:00:18]} 33. Rh7+ {[%clk 0:01:10]}  Kg8 {[%clk 0:00:19]} 34. Rbg7+ {[%clk 0:01:11]}  Kf8 {[%clk 0:00:19]} 35. c5 {[%clk 0:01:05]}  Nc3 {[%clk 0:00:18]} 36. c6 {[%clk 0:01:04]}  Nb5 {[%clk 0:00:18]} 37. Rb7 {[%clk 0:01:03]}  Nxa3 {[%clk 0:00:17]} 38. Rh8# {[%clk 0:01:03]} 1-0


[Site "https://www.chess.com"]

[Event "Titled Tuesday Blitz February 28 Early 2023"]
[White "Vifleemskaia, Svetlana"]
[Black "Fieberg, Samuel"]
[WhiteFideId "4129490"]
[BlackFideId "12901717"]
[WhiteElo "1930"]
[BlackElo "2466"]
[Result "1/2-1/2"]
[Round "05"]
[TimeControl "180+2"]
[Date "2023.02.28"]
[WhiteClock "0:01:38"]
[BlackClock "0:01:10"]

1. d4 {[%clk 0:02:54]}  e6 {[%clk 0:03:00]} 2. c4 {[%clk 0:02:54]}  d5 {[%clk 0:02:58]} 3. Nc3 {[%clk 0:02:54]}  c5 {[%clk 0:02:59]} 4. cxd5 {[%clk 0:02:53]}  exd5 {[%clk 0:02:59]} 5. Nf3 {[%clk 0:02:53]}  Nf6 {[%clk 0:02:58]} 6. g3 {[%clk 0:02:53]}  Nc6 {[%clk 0:02:58]} 7. Bg2 {[%clk 0:02:53]}  Be7 {[%clk 0:02:58]} 8. O-O {[%clk 0:02:54]}  O-O {[%clk 0:02:58]} 9. dxc5 {[%clk 0:02:54]}  Bxc5 {[%clk 0:02:57]} 10. a3 {[%clk 0:02:54]}  a5 {[%clk 0:02:56]} 11. Na4 {[%clk 0:02:53]}  Ba7 {[%clk 0:02:56]} 12. Bg5 {[%clk 0:02:50]}  Be6 {[%clk 0:02:32]} 13. Rc1 {[%clk 0:02:47]}  h6 {[%clk 0:02:30]} 14. Bf4 {[%clk 0:02:42]}  Ne4 {[%clk 0:02:28]} 15. Ne5 {[%clk 0:02:37]}  Rc8 {[%clk 0:02:20]} 16. Nxc6 {[%clk 0:02:32]}  bxc6 {[%clk 0:02:18]} 17. Bxe4 {[%clk 0:02:29]}  dxe4 {[%clk 0:02:18]} 18. Qxd8 {[%clk 0:02:26]}  Rfxd8 {[%clk 0:02:19]} 19. Nc5 {[%clk 0:02:27]}  Bd5 {[%clk 0:01:40]} 20. b4 {[%clk 0:02:20]}  axb4 {[%clk 0:01:39]} 21. axb4 {[%clk 0:02:21]}  Bb6 {[%clk 0:01:36]} 22. Ra1 {[%clk 0:02:19]}  Ra8 {[%clk 0:01:33]} 23. Rfc1 {[%clk 0:02:11]}  f6 {[%clk 0:01:27]} 24. h4 {[%clk 0:02:09]}  Kf7 {[%clk 0:01:26]} 25. Kf1 {[%clk 0:02:06]}  g5 {[%clk 0:01:27]} 26. hxg5 {[%clk 0:02:04]}  hxg5 {[%clk 0:01:28]} 27. Be3 {[%clk 0:02:03]}  Rh8 {[%clk 0:01:26]} 28. Ke1 {[%clk 0:02:03]}  Kg6 {[%clk 0:01:24]} 29. Kd2 {[%clk 0:02:01]}  f5 {[%clk 0:01:23]} 30. Bd4 {[%clk 0:01:58]}  Rhd8 {[%clk 0:01:20]} 31. e3 {[%clk 0:01:53]}  f4 {[%clk 0:01:19]} 32. gxf4 {[%clk 0:01:53]}  gxf4 {[%clk 0:01:20]} 33. Rxa8 {[%clk 0:01:42]}  Rxa8 {[%clk 0:01:17]} 34. exf4 {[%clk 0:01:42]}  Kf5 {[%clk 0:01:17]} 35. Be3 {[%clk 0:01:40]}  Ra2+ {[%clk 0:01:16]} 36. Rc2 {[%clk 0:01:39]}  Rxc2+ {[%clk 0:01:10]} 37. Kxc2 {[%clk 0:01:39]}  Bxc5 {[%clk 0:01:11]} 38. bxc5 {[%clk 0:01:38]}  Ke6 {[%clk 0:01:10]} 1/2-1/2


[Site "https://www.chess.com"]

[Event "Titled Tuesday Blitz February 28 Early 2023"]
[White "Buscar, Michael"]
[Black "Abdilkhair, Abilmansur"]
[WhiteFideId "2603616"]
[BlackFideId "13716417"]
[WhiteElo "2010"]
[BlackElo "2216"]
[Result "1-0"]
[Round "05"]
[TimeControl "180+2"]
[Date "2023.02.28"]
[WhiteClock "0:00:19"]
[BlackClock "0:00:03"]

1. Nf3 {[%clk 0:02:47]}  Nf6 {[%clk 0:02:59]} 2. g3 {[%clk 0:02:28]}  e6 {[%clk 0:02:59]} 3. Bg2 {[%clk 0:02:29]}  d5 {[%clk 0:02:59]} 4. O-O {[%clk 0:02:30]}  c6 {[%clk 0:02:59]} 5. c4 {[%clk 0:02:29]}  Be7 {[%clk 0:02:58]} 6. b3 {[%clk 0:02:29]}  O-O {[%clk 0:02:58]} 7. Bb2 {[%clk 0:02:30]}  b6 {[%clk 0:02:58]} 8. cxd5 {[%clk 0:02:29]}  cxd5 {[%clk 0:02:58]} 9. d3 {[%clk 0:02:26]}  Nc6 {[%clk 0:02:57]} 10. Ne5 {[%clk 0:02:24]}  Bb7 {[%clk 0:02:53]} 11. Nd2 {[%clk 0:02:22]}  Nxe5 {[%clk 0:02:47]} 12. Bxe5 {[%clk 0:02:21]}  Nd7 {[%clk 0:02:48]} 13. Bb2 {[%clk 0:02:21]}  Bf6 {[%clk 0:02:46]} 14. Qb1 {[%clk 0:02:18]}  Rc8 {[%clk 0:02:42]} 15. Rc1 {[%clk 0:02:18]}  Qe7 {[%clk 0:02:29]} 16. Nf1 {[%clk 0:02:08]}  Rxc1 {[%clk 0:02:19]} 17. Qxc1 {[%clk 0:02:08]}  Rc8 {[%clk 0:02:19]} 18. Qd2 {[%clk 0:02:07]}  Bxb2 {[%clk 0:02:11]} 19. Qxb2 {[%clk 0:02:06]}  Qc5 {[%clk 0:02:11]} 20. Ne3 {[%clk 0:02:02]}  h5 {[%clk 0:01:29]} 21. h4 {[%clk 0:02:00]}  Rc7 {[%clk 0:01:20]} 22. Bf3 {[%clk 0:02:00]}  d4 {[%clk 0:01:17]} 23. Ng2 {[%clk 0:01:39]}  Bxf3 {[%clk 0:01:16]} 24. exf3 {[%clk 0:01:39]}  Ne5 {[%clk 0:01:16]} 25. Qe2 {[%clk 0:01:36]}  Qd5 {[%clk 0:01:11]} 26. Ne1 {[%clk 0:01:24]}  Rc3 {[%clk 0:01:01]} 27. Rd1 {[%clk 0:01:23]}  Nc6 {[%clk 0:00:54]} 28. Qe4 {[%clk 0:01:18]}  Qxe4 {[%clk 0:00:45]} 29. fxe4 {[%clk 0:01:09]}  Nb4 {[%clk 0:00:40]} 30. Rd2 {[%clk 0:01:10]}  Rc1 {[%clk 0:00:34]} 31. Kf1 {[%clk 0:01:10]}  Ra1 {[%clk 0:00:35]} 32. a4 {[%clk 0:00:51]}  Rb1 {[%clk 0:00:34]} 33. Ke2 {[%clk 0:00:52]}  Rxb3 {[%clk 0:00:32]} 34. Nf3 {[%clk 0:00:51]}  Nc6 {[%clk 0:00:12]} 35. Rc2 {[%clk 0:00:48]}  Rc3 {[%clk 0:00:12]} 36. Rxc3 {[%clk 0:00:42]}  dxc3 {[%clk 0:00:13]} 37. d4 {[%clk 0:00:43]}  Nb4 {[%clk 0:00:11]} 38. Ne5 {[%clk 0:00:35]}  a6 {[%clk 0:00:08]} 39. Nd3 {[%clk 0:00:26]}  Nc6 {[%clk 0:00:06]} 40. d5 {[%clk 0:00:22]}  exd5 {[%clk 0:00:06]} 41. exd5 {[%clk 0:00:23]}  Nd4+ {[%clk 0:00:06]} 42. Ke3 {[%clk 0:00:23]}  c2 {[%clk 0:00:05]} 43. Kxd4 {[%clk 0:00:23]}  Kf8 {[%clk 0:00:05]} 44. Kc3 {[%clk 0:00:22]}  Ke7 {[%clk 0:00:05]} 45. Kxc2 {[%clk 0:00:22]}  Kd6 {[%clk 0:00:06]} 46. Nf4 {[%clk 0:00:20]}  g6 {[%clk 0:00:06]} 47. Kc3 {[%clk 0:00:20]}  Kc5 {[%clk 0:00:07]} 48. Kb3 {[%clk 0:00:19]}  b5 {[%clk 0:00:07]} 49. axb5 {[%clk 0:00:19]}  axb5 {[%clk 0:00:07]} 50. Kc3 {[%clk 0:00:19]}  Kd6 {[%clk 0:00:06]} 51. Kb4 {[%clk 0:00:19]}  Ke5 {[%clk 0:00:07]} 52. Kxb5 {[%clk 0:00:19]}  Kd6 {[%clk 0:00:08]} 53. Kc4 {[%clk 0:00:20]}  Ke5 {[%clk 0:00:09]} 54. Kc5 {[%clk 0:00:20]}  Kf6 {[%clk 0:00:08]} 55. d6 {[%clk 0:00:20]}  Kf5 {[%clk 0:00:09]} 56. Kc6 {[%clk 0:00:20]}  Kg4 {[%clk 0:00:10]} 57. d7 {[%clk 0:00:20]}  Kf3 {[%clk 0:00:11]} 58. Nd3 {[%clk 0:00:19]}  Ke2 {[%clk 0:00:10]} 59. d8=Q {[%clk 0:00:19]}  f5 {[%clk 0:00:09]} 60. Qd4 {[%clk 0:00:19]}  g5 {[%clk 0:00:06]} 61. Qe3+ {[%clk 0:00:19]}  Kf1 {[%clk 0:00:06]} 62. hxg5 {[%clk 0:00:19]}  h4 {[%clk 0:00:05]} 63. f4 {[%clk 0:00:19]}  Kg2 {[%clk 0:00:04]} 64. gxh4 {[%clk 0:00:19]}  Kh2 {[%clk 0:00:01]} 65. h5 {[%clk 0:00:17]}  Kg2 {[%clk 0:00:02]} 66. h6 {[%clk 0:00:17]}  Kh2 {[%clk 0:00:03]} 67. g6 {[%clk 0:00:17]}  Kg2 {[%clk 0:00:04]} 68. h7 {[%clk 0:00:18]}  Kf1 {[%clk 0:00:05]} 69. g7 {[%clk 0:00:18]}  Kg2 {[%clk 0:00:06]} 70. g8=Q+ {[%clk 0:00:18]}  Kf1 {[%clk 0:00:03]} 71. Qgg1# {[%clk 0:00:19]} 1-0


[Site "https://www.chess.com"]

[Event "Titled Tuesday Blitz February 28 Early 2023"]
[White "Mazurkiewicz, Michal"]
[Black "Kaufman, Raymond"]
[WhiteFideId "1124943"]
[BlackFideId "2015056"]
[WhiteElo "2054"]
[BlackElo "2321"]
[Result "1-0"]
[Round "05"]
[TimeControl "180+2"]
[Date "2023.02.28"]
[WhiteClock "0:01:33"]
[BlackClock "0:00:16"]

1. e4 {[%clk 0:03:00]}  e5 {[%clk 0:02:55]} 2. Nf3 {[%clk 0:03:00]}  Nc6 {[%clk 0:02:55]} 3. d3 {[%clk 0:03:00]}  Bc5 {[%clk 0:02:51]} 4. g3 {[%clk 0:03:01]}  d6 {[%clk 0:02:50]} 5. Bg2 {[%clk 0:03:01]}  f5 {[%clk 0:02:50]} 6. O-O {[%clk 0:03:02]}  fxe4 {[%clk 0:02:36]} 7. dxe4 {[%clk 0:03:02]}  Nf6 {[%clk 0:02:36]} 8. c3 {[%clk 0:03:00]}  O-O {[%clk 0:02:27]} 9. b4 {[%clk 0:02:55]}  Bb6 {[%clk 0:02:26]} 10. a4 {[%clk 0:02:55]}  a5 {[%clk 0:02:26]} 11. b5 {[%clk 0:02:55]}  Ne7 {[%clk 0:02:26]} 12. Qb3+ {[%clk 0:02:53]}  Kh8 {[%clk 0:02:25]} 13. Ng5 {[%clk 0:02:54]}  Qe8 {[%clk 0:02:17]} 14. Ne6 {[%clk 0:02:54]}  Bxe6 {[%clk 0:02:06]} 15. Qxe6 {[%clk 0:02:55]}  Ng6 {[%clk 0:02:00]} 16. Qxe8 {[%clk 0:02:52]}  Raxe8 {[%clk 0:01:59]} 17. Nd2 {[%clk 0:02:52]}  Rf7 {[%clk 0:01:45]} 18. Nc4 {[%clk 0:02:53]}  Bc5 {[%clk 0:01:43]} 19. Nxa5 {[%clk 0:02:52]}  Ng4 {[%clk 0:01:43]} 20. Nxb7 {[%clk 0:02:43]}  Bxf2+ {[%clk 0:01:38]} 21. Kh1 {[%clk 0:02:43]}  Ref8 {[%clk 0:01:29]} 22. h3 {[%clk 0:02:15]}  Nh6 {[%clk 0:00:58]} 23. Kh2 {[%clk 0:02:15]}  Bxg3+ {[%clk 0:00:55]} 24. Kxg3 {[%clk 0:02:15]}  Rxf1 {[%clk 0:00:55]} 25. Bxf1 {[%clk 0:02:14]}  Rxf1 {[%clk 0:00:55]} 26. a5 {[%clk 0:02:15]}  Ne7 {[%clk 0:00:52]} 27. Nd8 {[%clk 0:01:46]}  Nhg8 {[%clk 0:00:18]} 28. Bg5 {[%clk 0:01:33]}  Rxa1 {[%clk 0:00:16]} 29. Nf7# {[%clk 0:01:33]} 1-0


[Site "https://www.chess.com"]

[Event "Titled Tuesday Blitz February 28 Early 2023"]
[White "Chernov, Mikhail"]
[Black "Kiseleva, Arina"]
[WhiteFideId "24143170"]
[BlackFideId "4164989"]
[WhiteElo "2113"]
[BlackElo "1756"]
[Result "1-0"]
[Round "05"]
[TimeControl "180+2"]
[Date "2023.02.28"]
[WhiteClock "0:00:32"]
[BlackClock "0:00:20"]

1. e4 {[%clk 0:03:00]}  c6 {[%clk 0:02:59]} 2. d4 {[%clk 0:02:56]}  d5 {[%clk 0:02:59]} 3. e5 {[%clk 0:02:55]}  Bf5 {[%clk 0:02:58]} 4. h4 {[%clk 0:02:53]}  h5 {[%clk 0:02:59]} 5. c4 {[%clk 0:02:51]}  e6 {[%clk 0:02:55]} 6. Nc3 {[%clk 0:02:50]}  Bb4 {[%clk 0:02:55]} 7. Bg5 {[%clk 0:02:49]}  Ne7 {[%clk 0:02:46]} 8. Ne2 {[%clk 0:02:42]}  dxc4 {[%clk 0:02:33]} 9. Ng3 {[%clk 0:02:41]}  b5 {[%clk 0:02:23]} 10. Nxf5 {[%clk 0:02:40]}  exf5 {[%clk 0:02:18]} 11. Be2 {[%clk 0:02:36]}  Qa5 {[%clk 0:02:15]} 12. Rh3 {[%clk 0:02:22]}  Nd5 {[%clk 0:02:10]} 13. Bd2 {[%clk 0:02:14]}  Nxc3 {[%clk 0:02:03]} 14. bxc3 {[%clk 0:02:14]}  Be7 {[%clk 0:02:02]} 15. Bxh5 {[%clk 0:02:06]}  g6 {[%clk 0:01:56]} 16. Bf3 {[%clk 0:02:03]}  Rxh4 {[%clk 0:01:52]} 17. Rxh4 {[%clk 0:01:59]}  Bxh4 {[%clk 0:01:53]} 18. a4 {[%clk 0:01:38]}  b4 {[%clk 0:01:21]} 19. cxb4 {[%clk 0:01:36]}  Qb6 {[%clk 0:01:22]} 20. Bc3 {[%clk 0:01:33]}  Nd7 {[%clk 0:01:07]} 21. b5 {[%clk 0:01:31]}  Rc8 {[%clk 0:00:57]} 22. Bxc6 {[%clk 0:01:18]}  Kd8 {[%clk 0:00:52]} 23. Qd2 {[%clk 0:01:10]}  Qc7 {[%clk 0:00:43]} 24. Ke2 {[%clk 0:00:37]}  Be7 {[%clk 0:00:26]} 25. Rh1 {[%clk 0:00:34]}  Nf8 {[%clk 0:00:20]} 26. Ba5 {[%clk 0:00:32]} 1-0


[Site "https://www.chess.com"]

[Event "Titled Tuesday Blitz February 28 Early 2023"]
[White "Mohammed, Zozek Salah Mohammed"]
[Black "Fabris, Alberto"]
[WhiteFideId "4803361"]
[BlackFideId "801348"]
[WhiteElo "2211"]
[BlackElo "2132"]
[Result "1/2-1/2"]
[Round "05"]
[TimeControl "180+2"]
[Date "2023.02.28"]
[WhiteClock "0:00:45"]
[BlackClock "0:00:06"]

1. d4 {[%clk 0:02:54]}  Nf6 {[%clk 0:02:59]} 2. Nf3 {[%clk 0:02:54]}  e6 {[%clk 0:03:00]} 3. g3 {[%clk 0:02:54]}  b6 {[%clk 0:02:59]} 4. Bg2 {[%clk 0:02:55]}  Bb7 {[%clk 0:02:59]} 5. O-O {[%clk 0:02:55]}  Be7 {[%clk 0:02:59]} 6. c4 {[%clk 0:02:56]}  O-O {[%clk 0:02:59]} 7. Nc3 {[%clk 0:02:56]}  d5 {[%clk 0:02:57]} 8. Bf4 {[%clk 0:02:53]}  Nbd7 {[%clk 0:02:54]} 9. Rc1 {[%clk 0:02:52]}  c5 {[%clk 0:02:50]} 10. cxd5 {[%clk 0:02:46]}  Nxd5 {[%clk 0:02:49]} 11. Nxd5 {[%clk 0:02:46]}  Bxd5 {[%clk 0:02:47]} 12. Ne5 {[%clk 0:02:46]}  Bxg2 {[%clk 0:02:42]} 13. Kxg2 {[%clk 0:02:47]}  Nxe5 {[%clk 0:02:41]} 14. Bxe5 {[%clk 0:02:47]}  cxd4 {[%clk 0:02:34]} 15. Bxd4 {[%clk 0:02:47]}  Bf6 {[%clk 0:02:23]} 16. Bxf6 {[%clk 0:02:45]}  Qxf6 {[%clk 0:02:23]} 17. Qb3 {[%clk 0:02:45]}  Rac8 {[%clk 0:02:18]} 18. Rfd1 {[%clk 0:02:38]}  Rfd8 {[%clk 0:02:12]} 19. Rxc8 {[%clk 0:02:32]}  Rxc8 {[%clk 0:02:11]} 20. Qd3 {[%clk 0:02:28]}  h6 {[%clk 0:02:04]} 21. b4 {[%clk 0:02:27]}  Qe5 {[%clk 0:01:55]} 22. Rd2 {[%clk 0:02:16]}  Qc3 {[%clk 0:01:33]} 23. b5 {[%clk 0:02:08]}  Qxd3 {[%clk 0:01:32]} 24. Rxd3 {[%clk 0:02:09]}  Rc5 {[%clk 0:01:27]} 25. a4 {[%clk 0:02:04]}  Rc7 {[%clk 0:01:20]} 26. Rd8+ {[%clk 0:01:59]}  Kh7 {[%clk 0:01:20]} 27. Ra8 {[%clk 0:01:59]}  Kg6 {[%clk 0:01:19]} 28. e4 {[%clk 0:01:58]}  e5 {[%clk 0:01:17]} 29. f4 {[%clk 0:01:57]}  exf4 {[%clk 0:01:11]} 30. gxf4 {[%clk 0:01:58]}  Kf6 {[%clk 0:01:10]} 31. Kf3 {[%clk 0:01:56]}  g5 {[%clk 0:01:08]} 32. Ke3 {[%clk 0:01:41]}  gxf4+ {[%clk 0:01:07]} 33. Kxf4 {[%clk 0:01:42]}  Ke6 {[%clk 0:01:05]} 34. Rh8 {[%clk 0:01:42]}  Rc4 {[%clk 0:01:00]} 35. Rxh6+ {[%clk 0:01:38]}  f6 {[%clk 0:01:00]} 36. Rh7 {[%clk 0:01:33]}  Rxa4 {[%clk 0:00:59]} 37. h4 {[%clk 0:01:33]}  Ra5 {[%clk 0:00:53]} 38. Rc7 {[%clk 0:01:26]}  Rxb5 {[%clk 0:00:51]} 39. Rxa7 {[%clk 0:01:27]}  Rb1 {[%clk 0:00:49]} 40. Rb7 {[%clk 0:01:26]}  Rf1+ {[%clk 0:00:40]} 41. Ke3 {[%clk 0:01:25]}  Rb1 {[%clk 0:00:37]} 42. h5 {[%clk 0:01:24]}  Re1+ {[%clk 0:00:34]} 43. Kd3 {[%clk 0:01:21]}  Rd1+ {[%clk 0:00:21]} 44. Ke2 {[%clk 0:01:17]}  Rh1 {[%clk 0:00:19]} 45. Rxb6+ {[%clk 0:01:16]}  Ke5 {[%clk 0:00:19]} 46. Kf3 {[%clk 0:01:15]}  Rh3+ {[%clk 0:00:16]} 47. Kg4 {[%clk 0:01:13]}  Rh1 {[%clk 0:00:15]} 48. Rb4 {[%clk 0:01:10]}  Rg1+ {[%clk 0:00:15]} 49. Kf3 {[%clk 0:01:08]}  Rh1 {[%clk 0:00:14]} 50. Rb5+ {[%clk 0:01:07]}  Ke6 {[%clk 0:00:15]} 51. Rf5 {[%clk 0:01:06]}  Rh3+ {[%clk 0:00:14]} 52. Kf4 {[%clk 0:01:04]}  Rh4+ {[%clk 0:00:14]} 53. Ke3 {[%clk 0:01:03]}  Rh3+ {[%clk 0:00:13]} 54. Kd4 {[%clk 0:01:03]}  Rh1 {[%clk 0:00:14]} 55. Ra5 {[%clk 0:01:03]}  Rd1+ {[%clk 0:00:13]} 56. Ke3 {[%clk 0:01:03]}  Re1+ {[%clk 0:00:13]} 57. Kf3 {[%clk 0:01:03]}  Rf1+ {[%clk 0:00:13]} 58. Ke2 {[%clk 0:01:04]}  Rh1 {[%clk 0:00:13]} 59. Kf2 {[%clk 0:01:02]}  Rh2+ {[%clk 0:00:12]} 60. Kg3 {[%clk 0:01:01]}  Rh1 {[%clk 0:00:12]} 61. Kg2 {[%clk 0:01:02]}  Rh4 {[%clk 0:00:12]} 62. Kf3 {[%clk 0:01:00]}  Rh3+ {[%clk 0:00:12]} 63. Kg4 {[%clk 0:01:00]}  Rh1 {[%clk 0:00:12]} 64. Ra6+ {[%clk 0:00:54]}  Ke5 {[%clk 0:00:12]} 65. Ra4 {[%clk 0:00:54]}  Rg1+ {[%clk 0:00:11]} 66. Kf3 {[%clk 0:00:54]}  Rh1 {[%clk 0:00:11]} 67. Ke2 {[%clk 0:00:53]}  Kf4 {[%clk 0:00:10]} 68. Kd3 {[%clk 0:00:51]}  Rxh5 {[%clk 0:00:09]} 69. Ra6 {[%clk 0:00:50]}  Rh3+ {[%clk 0:00:07]} 70. Kd4 {[%clk 0:00:50]}  Kg5 {[%clk 0:00:07]} 71. Ra5+ {[%clk 0:00:48]}  Kg6 {[%clk 0:00:06]} 72. Ra2 {[%clk 0:00:47]}  Rh4 {[%clk 0:00:06]} 73. Kd5 {[%clk 0:00:46]}  Rh5+ {[%clk 0:00:06]} 74. Kd6 {[%clk 0:00:46]}  Re5 {[%clk 0:00:04]} 75. Re2 {[%clk 0:00:46]}  Kg5 {[%clk 0:00:04]} 76. Rg2+ {[%clk 0:00:45]}  Kf4 {[%clk 0:00:04]} 77. Rf2+ {[%clk 0:00:45]}  Kxe4 {[%clk 0:00:04]} 78. Rxf6 {[%clk 0:00:46]}  Rf5 {[%clk 0:00:04]} 79. Re6+ {[%clk 0:00:46]}  Kf4 {[%clk 0:00:05]} 80. Rh6 {[%clk 0:00:46]}  Rg5 {[%clk 0:00:05]} 81. Ke6 {[%clk 0:00:47]}  Ke4 {[%clk 0:00:05]} 82. Rh4+ {[%clk 0:00:46]}  Kf3 {[%clk 0:00:06]} 83. Kf6 {[%clk 0:00:47]}  Rg4 {[%clk 0:00:06]} 84. Rh5 {[%clk 0:00:46]}  Kf4 {[%clk 0:00:06]} 85. Rf5+ {[%clk 0:00:47]}  Ke4 {[%clk 0:00:06]} 86. Ra5 {[%clk 0:00:47]}  Ke3 {[%clk 0:00:06]} 87. Kf5 {[%clk 0:00:47]}  Rb4 {[%clk 0:00:06]} 88. Ra3+ {[%clk 0:00:46]}  Kd4 {[%clk 0:00:06]} 89. Kf4 {[%clk 0:00:45]}  Kd5+ {[%clk 0:00:07]} 90. Kf5 {[%clk 0:00:45]}  Kd4 {[%clk 0:00:07]} 91. Rf3 {[%clk 0:00:45]}  Kd5 {[%clk 0:00:06]} 92. Rf4 {[%clk 0:00:44]}  Rxf4+ {[%clk 0:00:06]} 93. Kxf4 {[%clk 0:00:45]} 1/2-1/2


[Site "https://www.chess.com"]